[Event "Titled Tuesday Blitz June 6 Early 2023"]
[White "Llanos, Guillermo"]
[Black "Aung Thant Zin"]
[WhiteFideId "100358"]
[BlackFideId "13000063"]
[WhiteElo "2210"]
[BlackElo "2278"]
[Result "0-1"]
[Round "5"]
[TimeControl "180+2"]
[Date "2023.06.06"]
[WhiteClock "0:00:01"]
[BlackClock "0:00:03"]
[Board "174"]

1. g3 {[%clk 0:02:53]}  d5 {[%clk 0:02:59]} 2. Bg2 {[%clk 0:02:53]}  e6 {[%clk 0:02:59]} 3. Nf3 {[%clk 0:02:51]}  Nf6 {[%clk 0:03:00]} 4. O-O {[%clk 0:02:51]}  Be7 {[%clk 0:03:00]} 5. b3 {[%clk 0:02:51]}  O-O {[%clk 0:03:00]} 6. Bb2 {[%clk 0:02:51]}  c5 {[%clk 0:03:01]} 7. c4 {[%clk 0:02:51]}  Nc6 {[%clk 0:03:01]} 8. cxd5 {[%clk 0:02:50]}  Nxd5 {[%clk 0:03:01]} 9. Nc3 {[%clk 0:02:48]}  Bf6 {[%clk 0:03:00]} 10. Rc1 {[%clk 0:02:41]}  Nxc3 {[%clk 0:02:56]} 11. Bxc3 {[%clk 0:02:40]}  Rb8 {[%clk 0:02:55]} 12. Bxf6 {[%clk 0:02:39]}  Qxf6 {[%clk 0:02:54]} 13. Rxc5 {[%clk 0:02:38]}  Rd8 {[%clk 0:02:54]} 14. d3 {[%clk 0:02:33]}  Bd7 {[%clk 0:02:45]} 15. Qa1 {[%clk 0:02:32]}  Qe7 {[%clk 0:02:44]} 16. Rfc1 {[%clk 0:02:29]}  f6 {[%clk 0:02:40]} 17. d4 {[%clk 0:02:27]}  Be8 {[%clk 0:02:39]} 18. e3 {[%clk 0:02:26]}  Nb4 {[%clk 0:02:34]} 19. Rc7 {[%clk 0:02:17]}  Qf8 {[%clk 0:02:31]} 20. Ne1 {[%clk 0:02:02]}  Nd5 {[%clk 0:02:22]} 21. R7c2 {[%clk 0:02:00]}  Bg6 {[%clk 0:02:18]} 22. Rd2 {[%clk 0:01:59]}  Rdc8 {[%clk 0:02:09]} 23. Bxd5 {[%clk 0:01:43]}  exd5 {[%clk 0:02:08]} 24. Nd3 {[%clk 0:01:43]}  Rxc1+ {[%clk 0:02:00]} 25. Qxc1 {[%clk 0:01:41]}  Rc8 {[%clk 0:02:01]} 26. Qd1 {[%clk 0:01:37]}  Qd6 {[%clk 0:01:51]} 27. Nf4 {[%clk 0:01:36]}  Bf5 {[%clk 0:01:44]} 28. f3 {[%clk 0:01:27]}  g5 {[%clk 0:01:42]} 29. Ne2 {[%clk 0:01:21]}  Qe6 {[%clk 0:01:35]} 30. Rd3 {[%clk 0:01:14]}  Bxd3 {[%clk 0:01:34]} 31. Qxd3 {[%clk 0:01:14]}  Kg7 {[%clk 0:01:26]} 32. g4 {[%clk 0:01:14]}  Rc7 {[%clk 0:01:20]} 33. Kf2 {[%clk 0:01:13]}  Qd6 {[%clk 0:01:18]} 34. Ng3 {[%clk 0:01:13]}  Qc6 {[%clk 0:01:11]} 35. Nf5+ {[%clk 0:01:12]}  Kf8 {[%clk 0:01:11]} 36. Kg3 {[%clk 0:01:11]}  Qc2 {[%clk 0:01:11]} 37. Qb5 {[%clk 0:01:07]}  Qc6 {[%clk 0:01:04]} 38. Qb4+ {[%clk 0:01:07]}  Kf7 {[%clk 0:01:03]} 39. h4 {[%clk 0:01:02]}  gxh4+ {[%clk 0:01:02]} 40. Kxh4 {[%clk 0:01:02]}  Qc1 {[%clk 0:00:37]} 41. Kg3 {[%clk 0:00:38]}  Qg1+ {[%clk 0:00:36]} 42. Kf4 {[%clk 0:00:38]}  Qh2+ {[%clk 0:00:34]} 43. Ng3 {[%clk 0:00:37]}  Rd7 {[%clk 0:00:21]} 44. e4 {[%clk 0:00:19]}  h5 {[%clk 0:00:21]} 45. Qb5 {[%clk 0:00:13]}  Ke8 {[%clk 0:00:12]} 46. Qc5 {[%clk 0:00:09]}  h4 {[%clk 0:00:09]} 47. Kf5 {[%clk 0:00:05]}  Qxg3 {[%clk 0:00:09]} 48. Ke6 {[%clk 0:00:04]}  Qxf3 {[%clk 0:00:06]} 49. Qc8+ {[%clk 0:00:01]}  Rd8 {[%clk 0:00:06]} 50. Qc7 {[%clk 0:00:01]}  Qxg4+ {[%clk 0:00:06]} 51. Kxf6 {[%clk 0:00:01]}  Qd7 {[%clk 0:00:03]} 0-1


[Site "https://www.chess.com"]

[Event "Titled Tuesday Blitz June 6 Early 2023"]
[White "Sanchez, Robert"]
[Black "Ai, Evan"]
[WhiteFideId "2034360"]
[BlackFideId "2094770"]
[WhiteElo "1795"]
[BlackElo "1963"]
[Result "0-1"]
[Round "5"]
[TimeControl "180+2"]
[Date "2023.06.06"]
[WhiteClock "0:01:30"]
[BlackClock "0:00:33"]
[Board "176"]

1. Nf3 {[%clk 0:03:00]}  Nf6 {[%clk 0:02:55]} 2. e3 {[%clk 0:03:01]}  d5 {[%clk 0:02:50]} 3. c4 {[%clk 0:03:01]}  c5 {[%clk 0:02:48]} 4. d4 {[%clk 0:03:00]}  e6 {[%clk 0:02:47]} 5. Nc3 {[%clk 0:03:00]}  dxc4 {[%clk 0:02:46]} 6. Bxc4 {[%clk 0:03:00]}  a6 {[%clk 0:02:42]} 7. O-O {[%clk 0:03:00]}  b5 {[%clk 0:02:43]} 8. Be2 {[%clk 0:03:00]}  Bb7 {[%clk 0:02:42]} 9. dxc5 {[%clk 0:02:59]}  Qxd1 {[%clk 0:02:42]} 10. Rxd1 {[%clk 0:02:58]}  Bxc5 {[%clk 0:02:42]} 11. Bd2 {[%clk 0:02:56]}  Nbd7 {[%clk 0:02:42]} 12. Rac1 {[%clk 0:02:57]}  O-O {[%clk 0:02:41]} 13. a3 {[%clk 0:02:51]}  Rac8 {[%clk 0:02:41]} 14. Ne1 {[%clk 0:02:45]}  Rfd8 {[%clk 0:02:30]} 15. Nd3 {[%clk 0:02:44]}  Be7 {[%clk 0:02:24]} 16. f3 {[%clk 0:02:39]}  e5 {[%clk 0:02:20]} 17. e4 {[%clk 0:02:38]}  Nc5 {[%clk 0:02:19]} 18. Be3 {[%clk 0:02:35]}  Nb3 {[%clk 0:02:19]} 19. Rc2 {[%clk 0:02:34]}  Nd4 {[%clk 0:02:16]} 20. Rcd2 {[%clk 0:02:33]}  Nd7 {[%clk 0:01:32]} 21. Bf1 {[%clk 0:02:31]}  Nb3 {[%clk 0:01:29]} 22. Rc2 {[%clk 0:02:20]}  a5 {[%clk 0:01:19]} 23. Rf2 {[%clk 0:02:15]}  b4 {[%clk 0:01:17]} 24. axb4 {[%clk 0:02:12]}  axb4 {[%clk 0:01:18]} 25. Nd5 {[%clk 0:02:05]}  Bxd5 {[%clk 0:01:01]} 26. exd5 {[%clk 0:02:06]}  Nf6 {[%clk 0:01:01]} 27. Nxe5 {[%clk 0:02:03]}  Rxd5 {[%clk 0:01:01]} 28. Rxd5 {[%clk 0:02:01]}  Nxd5 {[%clk 0:01:02]} 29. Nc4 {[%clk 0:01:45]}  Nxe3 {[%clk 0:00:48]} 30. Nxe3 {[%clk 0:01:45]}  Bc5 {[%clk 0:00:48]} 31. Re2 {[%clk 0:01:45]}  Nd4 {[%clk 0:00:33]} 32. Re1 {[%clk 0:01:30]}  Nc2 {[%clk 0:00:33]} 0-1


[Site "https://www.chess.com"]

[Event "Titled Tuesday Blitz June 6 Early 2023"]
[White "Toczek, Grzegorz"]
[Black "Joubert, Dantelle"]
[WhiteFideId "1106457"]
[BlackFideId "14310813"]
[WhiteElo "2093"]
[BlackElo "1507"]
[Result "1-0"]
[Round "5"]
[TimeControl "180+2"]
[Date "2023.06.06"]
[WhiteClock "0:01:19"]
[BlackClock "0:00:03"]
[Board "177"]

1. Nf3 {[%clk 0:03:00]}  d5 {[%clk 0:02:58]} 2. g3 {[%clk 0:03:01]}  Nf6 {[%clk 0:02:57]} 3. Bg2 {[%clk 0:03:02]}  e6 {[%clk 0:02:56]} 4. O-O {[%clk 0:03:03]}  Be7 {[%clk 0:02:56]} 5. d3 {[%clk 0:03:03]}  O-O {[%clk 0:02:56]} 6. c3 {[%clk 0:03:04]}  c5 {[%clk 0:02:56]} 7. Nbd2 {[%clk 0:03:04]}  Nc6 {[%clk 0:02:56]} 8. e4 {[%clk 0:03:04]}  b6 {[%clk 0:02:55]} 9. Re1 {[%clk 0:03:04]}  Bb7 {[%clk 0:02:54]} 10. Qc2 {[%clk 0:03:00]}  Ba6 {[%clk 0:02:46]} 11. e5 {[%clk 0:02:57]}  Nd7 {[%clk 0:02:43]} 12. a3 {[%clk 0:02:57]}  Qc7 {[%clk 0:02:40]} 13. d4 {[%clk 0:02:48]}  Rac8 {[%clk 0:02:25]} 14. Qa4 {[%clk 0:02:39]}  Bd3 {[%clk 0:02:11]} 15. h4 {[%clk 0:02:37]}  b5 {[%clk 0:01:58]} 16. Qd1 {[%clk 0:02:36]}  cxd4 {[%clk 0:01:56]} 17. cxd4 {[%clk 0:02:36]}  Qb6 {[%clk 0:01:50]} 18. Nb3 {[%clk 0:02:10]}  Be4 {[%clk 0:01:49]} 19. Be3 {[%clk 0:02:07]}  a5 {[%clk 0:01:08]} 20. Rc1 {[%clk 0:02:00]}  a4 {[%clk 0:01:00]} 21. Nc5 {[%clk 0:02:00]}  Nxc5 {[%clk 0:00:56]} 22. dxc5 {[%clk 0:02:00]}  Qb7 {[%clk 0:00:55]} 23. Bf4 {[%clk 0:01:38]}  Na5 {[%clk 0:00:39]} 24. Ng5 {[%clk 0:01:27]}  Bxg2 {[%clk 0:00:36]} 25. Kxg2 {[%clk 0:01:27]}  h6 {[%clk 0:00:36]} 26. Qh5 {[%clk 0:01:18]}  hxg5 {[%clk 0:00:28]} 27. hxg5 {[%clk 0:01:19]}  d4+ {[%clk 0:00:21]} 28. f3 {[%clk 0:01:19]}  f6 {[%clk 0:00:03]} 29. g6 {[%clk 0:01:19]} 1-0


[Site "https://www.chess.com"]

[Event "Titled Tuesday Blitz June 6 Early 2023"]
[White "Antonio, Jorge Carlos"]
[Black "Hinds, Nathan"]
[WhiteFideId "113190"]
[BlackFideId "7400730"]
[WhiteElo "2247"]
[BlackElo "2001"]
[Result "1-0"]
[Round "5"]
[TimeControl "180+2"]
[Date "2023.06.06"]
[WhiteClock "0:00:10"]
[BlackClock "0:00:16"]
[Board "178"]

1. e4 {[%clk 0:03:00]}  c6 {[%clk 0:03:00]} 2. d4 {[%clk 0:02:52]}  d5 {[%clk 0:03:00]} 3. exd5 {[%clk 0:02:51]}  cxd5 {[%clk 0:03:00]} 4. Nf3 {[%clk 0:02:45]}  Nc6 {[%clk 0:02:59]} 5. Bd3 {[%clk 0:02:45]}  Bg4 {[%clk 0:02:59]} 6. c3 {[%clk 0:02:41]}  Qc7 {[%clk 0:02:58]} 7. h3 {[%clk 0:02:40]}  Bxf3 {[%clk 0:02:58]} 8. Qxf3 {[%clk 0:02:38]}  e6 {[%clk 0:02:59]} 9. O-O {[%clk 0:02:33]}  Nf6 {[%clk 0:02:59]} 10. Bf4 {[%clk 0:02:31]}  Bd6 {[%clk 0:02:59]} 11. Bxd6 {[%clk 0:02:25]}  Qxd6 {[%clk 0:03:00]} 12. Re1 {[%clk 0:02:21]}  O-O {[%clk 0:03:00]} 13. Nd2 {[%clk 0:02:16]}  a6 {[%clk 0:02:59]} 14. Qe3 {[%clk 0:02:12]}  b5 {[%clk 0:02:52]} 15. b4 {[%clk 0:02:06]}  Rac8 {[%clk 0:02:50]} 16. Nb3 {[%clk 0:02:05]}  Nd7 {[%clk 0:02:43]} 17. Nc5 {[%clk 0:02:04]}  Nxc5 {[%clk 0:02:43]} 18. dxc5 {[%clk 0:01:59]}  Qe7 {[%clk 0:02:37]} 19. a4 {[%clk 0:01:55]}  bxa4 {[%clk 0:02:06]} 20. Rxa4 {[%clk 0:01:53]}  a5 {[%clk 0:01:43]} 21. b5 {[%clk 0:01:52]}  d4 {[%clk 0:01:43]} 22. cxd4 {[%clk 0:01:49]}  Nb4 {[%clk 0:01:44]} 23. Rxa5 {[%clk 0:01:45]}  Rfd8 {[%clk 0:01:41]} 24. Qe4 {[%clk 0:01:19]}  Nxd3 {[%clk 0:01:39]} 25. Qxd3 {[%clk 0:01:18]}  Rxc5 {[%clk 0:01:40]} 26. Rea1 {[%clk 0:01:06]}  Rcd5 {[%clk 0:01:37]} 27. b6 {[%clk 0:00:58]}  Rxd4 {[%clk 0:01:27]} 28. Qf3 {[%clk 0:00:41]}  R4d7 {[%clk 0:01:11]} 29. Ra8 {[%clk 0:00:37]}  Qf8 {[%clk 0:00:29]} 30. b7 {[%clk 0:00:33]}  g6 {[%clk 0:00:20]} 31. Rxd8 {[%clk 0:00:27]}  Rxd8 {[%clk 0:00:20]} 32. Ra8 {[%clk 0:00:22]}  Kg7 {[%clk 0:00:20]} 33. Qc3+ {[%clk 0:00:16]}  f6 {[%clk 0:00:20]} 34. Qc7+ {[%clk 0:00:12]}  Kh6 {[%clk 0:00:20]} 35. Qxd8 {[%clk 0:00:12]}  Qc5 {[%clk 0:00:17]} 36. Qf8+ {[%clk 0:00:10]}  Qxf8 {[%clk 0:00:16]} 37. Rxf8 {[%clk 0:00:10]}  Kg5 {[%clk 0:00:16]} 38. b8=Q {[%clk 0:00:10]} 1-0


[Site "https://www.chess.com"]

[Event "Titled Tuesday Blitz June 6 Early 2023"]
[White "Winkels, Marcel"]
[Black "Baraeva, Irina"]
[WhiteFideId "1003887"]
[BlackFideId "24142565"]
[WhiteElo "1900"]
[BlackElo "2085"]
[Result "0-1"]
[Round "5"]
[TimeControl "180+2"]
[Date "2023.06.06"]
[WhiteClock "0:00:02"]
[BlackClock "0:00:35"]
[Board "179"]

1. e4 {[%clk 0:03:00]}  e6 {[%clk 0:02:59]} 2. d4 {[%clk 0:02:59]}  d5 {[%clk 0:02:59]} 3. e5 {[%clk 0:03:00]}  c5 {[%clk 0:02:59]} 4. c3 {[%clk 0:03:01]}  Qb6 {[%clk 0:02:58]} 5. Nf3 {[%clk 0:03:01]}  Nc6 {[%clk 0:02:58]} 6. Bd3 {[%clk 0:02:59]}  Bd7 {[%clk 0:02:57]} 7. O-O {[%clk 0:02:57]}  cxd4 {[%clk 0:02:57]} 8. Qe2 {[%clk 0:02:44]}  Nge7 {[%clk 0:02:31]} 9. h4 {[%clk 0:02:36]}  a6 {[%clk 0:02:21]} 10. Na3 {[%clk 0:02:28]}  dxc3 {[%clk 0:02:19]} 11. bxc3 {[%clk 0:02:27]}  Na5 {[%clk 0:01:58]} 12. Be3 {[%clk 0:02:20]}  Qc7 {[%clk 0:01:57]} 13. Rac1 {[%clk 0:02:09]}  Nec6 {[%clk 0:01:56]} 14. Bf4 {[%clk 0:01:54]}  Bxa3 {[%clk 0:01:55]} 15. Rc2 {[%clk 0:01:48]}  b5 {[%clk 0:01:51]} 16. Nd4 {[%clk 0:01:45]}  Nc4 {[%clk 0:01:45]} 17. Bxc4 {[%clk 0:01:08]}  bxc4 {[%clk 0:01:45]} 18. Bg3 {[%clk 0:01:05]}  Rb8 {[%clk 0:01:34]} 19. f4 {[%clk 0:01:02]}  Nxd4 {[%clk 0:01:31]} 20. cxd4 {[%clk 0:01:01]}  Ba4 {[%clk 0:01:31]} 21. Rd2 {[%clk 0:00:51]}  Qb6 {[%clk 0:01:15]} 22. f5 {[%clk 0:00:44]}  c3 {[%clk 0:01:10]} 23. fxe6 {[%clk 0:00:27]}  Qxe6 {[%clk 0:01:09]} 24. Rd3 {[%clk 0:00:17]}  Bb5 {[%clk 0:01:06]} 25. Rb1 {[%clk 0:00:14]}  O-O {[%clk 0:01:04]} 26. Qf3 {[%clk 0:00:09]}  Bxd3 {[%clk 0:01:02]} 27. Qxd3 {[%clk 0:00:10]}  Rxb1+ {[%clk 0:01:01]} 28. Qxb1 {[%clk 0:00:10]}  Rc8 {[%clk 0:00:57]} 29. Qc2 {[%clk 0:00:10]}  Qg6 {[%clk 0:00:55]} 30. Qf2 {[%clk 0:00:08]}  c2 {[%clk 0:00:54]} 31. Bf4 {[%clk 0:00:07]}  c1=Q+ {[%clk 0:00:51]} 32. Bxc1 {[%clk 0:00:06]}  Rxc1+ {[%clk 0:00:51]} 33. Kh2 {[%clk 0:00:06]}  Rc2 {[%clk 0:00:47]} 34. Qf3 {[%clk 0:00:05]}  Bb2 {[%clk 0:00:41]} 35. Qxd5 {[%clk 0:00:04]}  h6 {[%clk 0:00:37]} 36. Qb3 {[%clk 0:00:02]}  Qxg2# {[%clk 0:00:35]} 0-1


[Site "https://www.chess.com"]

[Event "Titled Tuesday Blitz June 6 Early 2023"]
[White "Flis, Pawel"]
[Black "Womacka, Mathias"]
[WhiteFideId "1112864"]
[BlackFideId "4611390"]
[WhiteElo "1822"]
[BlackElo "2377"]
[Result "0-1"]
[Round "5"]
[TimeControl "180+2"]
[Date "2023.06.06"]
[WhiteClock "0:00:01"]
[BlackClock "0:00:34"]
[Board "182"]

1. e4 {[%clk 0:03:00]}  c5 {[%clk 0:02:58]} 2. Nf3 {[%clk 0:03:00]}  d6 {[%clk 0:02:58]} 3. d4 {[%clk 0:03:00]}  cxd4 {[%clk 0:02:58]} 4. Nxd4 {[%clk 0:03:00]}  Nf6 {[%clk 0:02:58]} 5. Nc3 {[%clk 0:03:00]}  a6 {[%clk 0:02:58]} 6. Bg5 {[%clk 0:03:00]}  e6 {[%clk 0:02:56]} 7. f4 {[%clk 0:03:00]}  h6 {[%clk 0:02:57]} 8. Bh4 {[%clk 0:02:58]}  Qb6 {[%clk 0:02:56]} 9. Bxf6 {[%clk 0:02:44]}  gxf6 {[%clk 0:02:55]} 10. Nb3 {[%clk 0:02:13]}  Qe3+ {[%clk 0:02:54]} 11. Be2 {[%clk 0:02:12]}  Qxf4 {[%clk 0:02:53]} 12. Rf1 {[%clk 0:02:07]}  Qxh2 {[%clk 0:02:52]} 13. Rxf6 {[%clk 0:02:04]}  Bg7 {[%clk 0:02:46]} 14. Rf2 {[%clk 0:02:00]}  Bxc3+ {[%clk 0:02:32]} 15. bxc3 {[%clk 0:01:58]}  Nc6 {[%clk 0:02:33]} 16. Qd2 {[%clk 0:01:53]}  Bd7 {[%clk 0:01:46]} 17. O-O-O {[%clk 0:01:52]}  O-O-O {[%clk 0:01:38]} 18. Qxd6 {[%clk 0:01:39]}  Qxd6 {[%clk 0:01:38]} 19. Rxd6 {[%clk 0:01:38]}  Ne5 {[%clk 0:01:38]} 20. Bh5 {[%clk 0:01:12]}  Rhf8 {[%clk 0:01:29]} 21. Nc5 {[%clk 0:01:07]}  Bc6 {[%clk 0:01:28]} 22. Rxd8+ {[%clk 0:01:02]}  Rxd8 {[%clk 0:01:29]} 23. Bxf7 {[%clk 0:00:55]}  Nxf7 {[%clk 0:01:21]} 24. Rxf7 {[%clk 0:00:54]}  Rg8 {[%clk 0:01:21]} 25. Nxe6 {[%clk 0:00:29]}  Bxe4 {[%clk 0:01:13]} 26. Rc7+ {[%clk 0:00:19]}  Kb8 {[%clk 0:01:12]} 27. Rg7 {[%clk 0:00:17]}  Rxg7 {[%clk 0:01:11]} 28. Nxg7 {[%clk 0:00:18]}  Bxg2 {[%clk 0:01:11]} 29. Kd2 {[%clk 0:00:19]}  Be4 {[%clk 0:00:58]} 30. Ke3 {[%clk 0:00:15]}  Bxc2 {[%clk 0:00:58]} 31. Ne6 {[%clk 0:00:15]}  Ka7 {[%clk 0:00:53]} 32. Kd4 {[%clk 0:00:13]}  Kb6 {[%clk 0:00:51]} 33. Nf4 {[%clk 0:00:13]}  Kb5 {[%clk 0:00:47]} 34. a3 {[%clk 0:00:12]}  Ka4 {[%clk 0:00:45]} 35. Nd5 {[%clk 0:00:10]}  Kxa3 {[%clk 0:00:44]} 36. Nb4 {[%clk 0:00:10]}  Bg6 {[%clk 0:00:42]} 37. Nd5 {[%clk 0:00:09]}  Kb3 {[%clk 0:00:39]} 38. Ne7 {[%clk 0:00:06]}  Bc2 {[%clk 0:00:36]} 39. c4 {[%clk 0:00:03]}  a5 {[%clk 0:00:34]} 40. c5 {[%clk 0:00:01]}  a4 {[%clk 0:00:34]} 0-1


[Site "https://www.chess.com"]

[Event "Titled Tuesday Blitz June 6 Early 2023"]
[White "Barbot, Pierre"]
[Black "Blackwhite017"]
[WhiteFideId "663727"]
[WhiteElo "2431"]
[BlackElo "2076"]
[Result "1-0"]
[Round "5"]
[TimeControl "180+2"]
[Date "2023.06.06"]
[WhiteClock "0:01:29"]
[BlackClock "0:01:04"]
[Board "184"]

1. d4 {[%clk 0:03:00]}  d5 {[%clk 0:02:58]} 2. Nf3 {[%clk 0:03:00]}  c6 {[%clk 0:02:56]} 3. Bf4 {[%clk 0:02:57]}  Nf6 {[%clk 0:02:56]} 4. e3 {[%clk 0:02:56]}  g6 {[%clk 0:02:56]} 5. h3 {[%clk 0:02:53]}  Bg7 {[%clk 0:02:56]} 6. Nbd2 {[%clk 0:02:52]}  O-O {[%clk 0:02:55]} 7. Bd3 {[%clk 0:02:50]}  b6 {[%clk 0:02:47]} 8. Qe2 {[%clk 0:02:37]}  Bb7 {[%clk 0:02:46]} 9. O-O {[%clk 0:02:37]}  Re8 {[%clk 0:02:40]} 10. c3 {[%clk 0:02:35]}  e6 {[%clk 0:02:36]} 11. Bh2 {[%clk 0:02:33]}  Nbd7 {[%clk 0:02:29]} 12. Ne5 {[%clk 0:02:17]}  Nxe5 {[%clk 0:02:28]} 13. Bxe5 {[%clk 0:02:14]}  Nd7 {[%clk 0:02:24]} 14. Bxg7 {[%clk 0:02:14]}  Kxg7 {[%clk 0:02:25]} 15. e4 {[%clk 0:02:11]}  c5 {[%clk 0:02:16]} 16. e5 {[%clk 0:02:06]}  cxd4 {[%clk 0:02:13]} 17. cxd4 {[%clk 0:02:07]}  Rc8 {[%clk 0:01:57]} 18. f4 {[%clk 0:01:56]}  f5 {[%clk 0:01:51]} 19. exf6+ {[%clk 0:01:52]}  Qxf6 {[%clk 0:01:51]} 20. Qe3 {[%clk 0:01:44]}  Nb8 {[%clk 0:01:41]} 21. Nf3 {[%clk 0:01:38]}  Nc6 {[%clk 0:01:39]} 22. Ne5 {[%clk 0:01:38]}  Nxe5 {[%clk 0:01:35]} 23. fxe5 {[%clk 0:01:39]}  Qe7 {[%clk 0:01:34]} 24. Rf6 {[%clk 0:01:37]}  Rf8 {[%clk 0:01:28]} 25. Raf1 {[%clk 0:01:37]}  Bc6 {[%clk 0:01:28]} 26. Qg5 {[%clk 0:01:34]}  Qd7 {[%clk 0:01:06]} 27. Bxg6 {[%clk 0:01:29]}  hxg6 {[%clk 0:01:05]} 28. Qxg6+ {[%clk 0:01:27]}  Kh8 {[%clk 0:01:04]} 29. Rxf8+ {[%clk 0:01:28]}  Rxf8 {[%clk 0:01:04]} 30. Rxf8# {[%clk 0:01:29]} 1-0


[Site "https://www.chess.com"]

[Event "Titled Tuesday Blitz June 6 Early 2023"]
[White "Marichal Gonzalez, Ariel"]
[Black "Alexanian, Nelli"]
[WhiteFideId "3503232"]
[BlackFideId "4170539"]
[WhiteElo "2250"]
[BlackElo "2040"]
[Result "1-0"]
[Round "5"]
[TimeControl "180+2"]
[Date "2023.06.06"]
[WhiteClock "0:02:18"]
[BlackClock "0:01:01"]
[Board "186"]

1. d4 {[%clk 0:03:00]}  Nf6 {[%clk 0:02:58]} 2. c4 {[%clk 0:03:00]}  c5 {[%clk 0:02:57]} 3. d5 {[%clk 0:03:00]}  b5 {[%clk 0:02:56]} 4. cxb5 {[%clk 0:02:59]}  a6 {[%clk 0:02:54]} 5. bxa6 {[%clk 0:03:00]}  g6 {[%clk 0:02:52]} 6. Nc3 {[%clk 0:03:00]}  Bxa6 {[%clk 0:02:50]} 7. e4 {[%clk 0:03:00]}  Bxf1 {[%clk 0:02:48]} 8. Kxf1 {[%clk 0:03:01]}  d6 {[%clk 0:02:48]} 9. Nf3 {[%clk 0:03:01]}  Bg7 {[%clk 0:02:47]} 10. g3 {[%clk 0:03:01]}  Na6 {[%clk 0:02:29]} 11. Kg2 {[%clk 0:03:00]}  Nd7 {[%clk 0:02:25]} 12. Qe2 {[%clk 0:02:57]}  O-O {[%clk 0:02:16]} 13. a4 {[%clk 0:02:54]}  Nc7 {[%clk 0:01:58]} 14. Bg5 {[%clk 0:02:45]}  h6 {[%clk 0:01:55]} 15. Be3 {[%clk 0:02:44]}  f5 {[%clk 0:01:49]} 16. exf5 {[%clk 0:02:43]}  Rxf5 {[%clk 0:01:46]} 17. Rhd1 {[%clk 0:02:37]}  Nb6 {[%clk 0:01:42]} 18. Nh4 {[%clk 0:02:26]}  Rh5 {[%clk 0:01:05]} 19. Nxg6 {[%clk 0:02:22]}  Ncxd5 {[%clk 0:01:01]} 20. Qxh5 {[%clk 0:02:18]} 1-0


[Site "https://www.chess.com"]

[Event "Titled Tuesday Blitz June 6 Early 2023"]
[White "Joshi, Pankaj"]
[Black "White, John S."]
[WhiteFideId "5006210"]
[BlackFideId "2502348"]
[WhiteElo "2305"]
[BlackElo "1969"]
[Result "1/2-1/2"]
[Round "5"]
[TimeControl "180+2"]
[Date "2023.06.06"]
[WhiteClock "0:00:41"]
[BlackClock "0:00:57"]
[Board "187"]

1. e4 {[%clk 0:03:00]}  e6 {[%clk 0:03:00]} 2. d4 {[%clk 0:03:00]}  d5 {[%clk 0:03:01]} 3. exd5 {[%clk 0:02:58]}  exd5 {[%clk 0:03:01]} 4. c3 {[%clk 0:02:59]}  Nf6 {[%clk 0:03:00]} 5. Nf3 {[%clk 0:02:59]}  Be6 {[%clk 0:02:59]} 6. Bd3 {[%clk 0:02:59]}  Bd6 {[%clk 0:02:56]} 7. Bg5 {[%clk 0:02:58]}  O-O {[%clk 0:02:50]} 8. O-O {[%clk 0:02:58]}  h6 {[%clk 0:02:48]} 9. Bxf6 {[%clk 0:02:51]}  Qxf6 {[%clk 0:02:46]} 10. Qe2 {[%clk 0:02:49]}  Nd7 {[%clk 0:02:39]} 11. Nbd2 {[%clk 0:02:44]}  c5 {[%clk 0:02:33]} 12. dxc5 {[%clk 0:02:26]}  Nxc5 {[%clk 0:02:31]} 13. Rad1 {[%clk 0:02:19]}  Nxd3 {[%clk 0:02:20]} 14. Qxd3 {[%clk 0:02:20]}  Rfd8 {[%clk 0:02:11]} 15. Nd4 {[%clk 0:02:10]}  Bd7 {[%clk 0:02:05]} 16. N2f3 {[%clk 0:02:06]}  Bc6 {[%clk 0:01:59]} 17. Rfe1 {[%clk 0:01:59]}  Re8 {[%clk 0:01:55]} 18. h3 {[%clk 0:01:25]}  a6 {[%clk 0:01:29]} 19. Qd2 {[%clk 0:01:23]}  Qf4 {[%clk 0:01:25]} 20. Qxf4 {[%clk 0:01:18]}  Bxf4 {[%clk 0:01:26]} 21. g3 {[%clk 0:01:12]}  Bc7 {[%clk 0:01:19]} 22. h4 {[%clk 0:01:09]}  Bb6 {[%clk 0:01:16]} 23. Ne5 {[%clk 0:00:53]}  Bxd4 {[%clk 0:01:06]} 24. cxd4 {[%clk 0:00:42]}  Re6 {[%clk 0:00:59]} 25. Nxc6 {[%clk 0:00:41]}  Rxc6 {[%clk 0:00:57]} 1/2-1/2


[Site "https://www.chess.com"]

[Event "Titled Tuesday Blitz June 6 Early 2023"]
[White "Lohani, Sujana"]
[Black "Kriti Mayur Patel"]
[WhiteFideId "12311987"]
[BlackFideId "35061780"]
[WhiteElo "1718"]
[BlackElo "1306"]
[Result "0-1"]
[Round "5"]
[TimeControl "180+2"]
[Date "2023.06.06"]
[WhiteClock "0:00:33"]
[BlackClock "0:02:45"]
[Board "189"]

1. d4 {[%clk 0:00:57]}  d5 {[%clk 0:02:57]} 2. Nf3 {[%clk 0:00:58]}  Nf6 {[%clk 0:02:57]} 3. c4 {[%clk 0:00:59]}  e6 {[%clk 0:02:58]} 4. g3 {[%clk 0:00:59]}  Be7 {[%clk 0:02:59]} 5. Bg2 {[%clk 0:00:55]}  O-O {[%clk 0:02:59]} 6. O-O {[%clk 0:00:54]}  dxc4 {[%clk 0:03:00]} 7. Qc2 {[%clk 0:00:48]}  a6 {[%clk 0:03:00]} 8. Qxc4 {[%clk 0:00:47]}  b5 {[%clk 0:02:59]} 9. Qc2 {[%clk 0:00:45]}  Bb7 {[%clk 0:03:00]} 10. Rd1 {[%clk 0:00:42]}  Nc6 {[%clk 0:02:57]} 11. e4 {[%clk 0:00:38]}  Nb4 {[%clk 0:02:55]} 12. Qe2 {[%clk 0:00:34]}  Bxe4 {[%clk 0:02:53]} 13. a3 {[%clk 0:00:33]}  Nc2 {[%clk 0:02:45]} 0-1


[Site "https://www.chess.com"]